lending/lending_fUSD_20250516
["ID","MTS","AMOUNT","RATE_DAILY","PERIOD"]
[361289918,1747426258630,-400.0,0.00016712,2]
[361289919,1747426258640,-400.0,0.00016712,2]
[361289920,1747426258649,-400.0,0.00016712,2]
[361289921,1747426258659,-500.0,0.00016712,2]
[361289922,1747426258668,-893.46,0.00016712,2]
[361289923,1747426258677,-1282.7,0.00016712,2]
[361289924,1747426258687,-400.0,0.00016712,2]
[361289925,1747426258696,-456.02,0.00016712,2]
[361289926,1747426258705,-500.0,0.00016712,2]
[361289927,1747426258715,-400.0,0.00016712,2]
[361289928,1747426258724,-219.65779485,0.00016712,2]
[361289929,1747426258733,-640.85,0.00016712,2]
[361289930,1747426258743,-767.85,0.00016712,2]
[361289931,1747426258752,-400.0,0.00016712,2]
[361289932,1747426258761,-790.19,0.00016712,2]
[361289933,1747426258771,-400.0,0.00016712,2]
[361289934,1747426258780,-466.21,0.00016712,2]
[361289935,1747426258792,-258.237282,0.00016712,2]
[361289936,1747426258802,-500.0,0.00016712,2]
[361289937,1747426258811,-400.0,0.00016712,2]
[361289938,1747426258820,-167.0461367,0.00016712,2]
[361289939,1747426258830,-471.36,0.00016712,2]
[361289940,1747426258841,-500.0,0.00016712,2]
[361289941,1747426258850,-3271.29,0.00016712,2]
[361289942,1747426258860,-500.0,0.00016712,2]
[361289943,1747426258870,-1409.42,0.00016712,2]
[361289944,1747426258879,-476.96,0.00016712,2]
[361289945,1747426258888,-505.82879114,0.00016712,2]
[361289946,1747426258897,-400.0,0.00016712,2]
[361289947,1747426258906,-977.9,0.00016712,2]
[361289948,1747426258915,-400.0,0.00016712,2]
[361289949,1747426258923,-152.28712309,0.00016712,2]
[361289950,1747426258932,-400.0,0.00016712,2]
[361289951,1747426258941,-260.935554,0.00016712,2]
[361289952,1747426258950,-400.0,0.00016712,2]
[361289953,1747426258959,-260.935554,0.00016712,2]
[361289954,1747426258968,-260.935554,0.00016712,2]
[361289955,1747426258977,-260.935554,0.00016712,2]
[361289956,1747426258986,-250.76352385,0.00016712,2]
[361289957,1747426258995,-260.935554,0.00016712,2]
[361289958,1747426259004,-1459.74,0.00016712,2]
[361289959,1747426259013,-400.0,0.00016712,2]
[361289960,1747426259023,-727.49,0.00016712,2]
[361289961,1747426259033,-1251.24,0.00016712,2]
[361289962,1747426259042,-260.935554,0.00016712,2]
[361289963,1747426259052,-260.935554,0.00016712,2]
[361289964,1747426259061,-400.0,0.00016712,2]
[361289965,1747426259070,-260.935554,0.00016712,2]
[361289966,1747426259079,-400.0,0.00016712,2]
[361289967,1747426259088,-907.74,0.00016712,2]
[361289968,1747426259097,-400.0,0.00016712,2]
[361289969,1747426259106,-400.0,0.00016712,2]
[361289970,1747426259115,-587.956256,0.00016712,2]
[361289971,1747426259124,-587.956256,0.00016712,2]
[361289972,1747426259133,-587.956256,0.00016712,2]
[361289973,1747426259145,-587.956256,0.00016712,2]
[361289974,1747426259154,-500.0,0.00016712,2]
[361289975,1747426259162,-400.0,0.00016712,2]
[361289976,1747426259171,-587.956256,0.00016712,2]
[361289977,1747426259180,-428.908007,0.00016712,2]
[361289978,1747426259189,-428.908007,0.00016712,2]
[361289979,1747426259197,-500.0,0.00016712,2]
[361289980,1747426259206,-428.908007,0.00016712,2]
[361289981,1747426259215,-412.91,0.00016712,2]
[361289982,1747426259224,-260.935554,0.00016712,2]
[361289983,1747426259233,-428.908007,0.00016712,2]
[361289984,1747426259242,-260.935554,0.00016712,2]
[361289985,1747426259250,-587.956256,0.00016712,2]
[361289986,1747426259259,-428.908007,0.00016712,2]
[361289987,1747426259268,-587.956256,0.00016712,2]
[361289988,1747426259277,-587.956256,0.00016712,2]
[361289989,1747426259286,-763.28,0.00016712,2]
[361289990,1747426259295,-587.956256,0.00016712,2]
[361289991,1747426259304,-587.956256,0.00016712,2]
[361289992,1747426259313,-803.56,0.00016712,2]
[361289993,1747426259322,-400.0,0.00016712,2]
[361289994,1747426259332,-500.0,0.00016712,2]
[361289995,1747426259341,-428.908007,0.00016712,2]
[361289996,1747426259350,-500.0,0.00016712,2]
[361289997,1747426259359,-400.0,0.00016712,2]
[361289998,1747426259368,-428.908007,0.00016712,2]
[361289999,1747426259377,-400.0,0.00016712,2]
[361290000,1747426259386,-428.908007,0.00016712,2]
[361290001,1747426259395,-500.0,0.00016712,2]
[361290002,1747426259405,-428.908007,0.00016712,2]
[361290003,1747426259414,-428.908007,0.00016712,2]
[361290004,1747426259423,-400.0,0.00016712,2]
[361290005,1747426259432,-400.0,0.00016712,2]
[361290006,1747426259441,-400.0,0.00016712,2]
[361290007,1747426259450,-400.0,0.00016712,2]
[361290008,1747426259459,-168.13715795,0.00016712,2]
[361290009,1747426259467,-557.08,0.00016712,2]
[361290010,1747426259477,-662.7,0.00016712,2]
[361290011,1747426259486,-484.39,0.00016712,2]
[361290012,1747426259495,-496.5,0.00016712,2]
[361290013,1747426259504,-500.0,0.00016712,2]
[361290014,1747426259514,-178.33673299,0.00016712,2]
[361290015,1747426259523,-413.65,0.00016712,2]
[361290016,1747426259532,-4560.85,0.00016712,2]
[361290017,1747426259542,-400.0,0.00016712,2]
[361290018,1747426259552,-400.0,0.00016712,2]
[361290019,1747426259561,-400.0,0.00016712,2]
[361290020,1747426259571,-438.78,0.00016712,2]
[361290021,1747426259579,-400.0,0.00016712,2]
[361290022,1747426259588,-400.0,0.00016712,2]
[361290023,1747426259597,-23461.15,0.00016712,2]
[361290024,1747426259607,-500.0,0.00016712,2]
[361290025,1747426259616,-499.07,0.00016712,2]
[361290026,1747426259625,-609.34,0.00016712,2]
[361290027,1747426259635,-400.0,0.00016712,2]
[361290028,1747426259645,-576.54,0.00016712,2]
[361290029,1747426259654,-400.0,0.00016712,2]
[361290030,1747426259664,-150.02739365,0.00016712,2]
[361290031,1747426259674,-1719.49,0.00016712,2]
[361290032,1747426259683,-400.0,0.00016712,2]
[361290033,1747426259692,-219.31386995,0.00016712,2]
[361290034,1747426259701,-400.0,0.00016712,2]
[361290035,1747426259710,-500.0,0.00016712,2]
[361290036,1747426259720,-400.0,0.00016712,2]
[361290037,1747426259729,-725.99,0.00016712,2]
[361290038,1747426259739,-616.42,0.00016712,2]
[361290039,1747426259748,-1048.33,0.00016712,2]
[361290040,1747426259758,-400.0,0.00016712,2]
[361290041,1747426259767,-1612.17,0.00016712,2]
[361290042,1747426259776,-400.0,0.00016712,2]
[361290043,1747426259786,-400.0,0.00016712,2]
[361290044,1747426259797,-400.0,0.00016712,2]
[361290045,1747426259807,-1000.0,0.00016712,2]
[361290046,1747426259816,-1325.06,0.00016712,2]
[361290047,1747426259826,-662.1,0.00016712,2]
[361290048,1747426259836,-500.0,0.00016712,2]
[361290049,1747426259847,-400.0,0.00016712,2]
[361290050,1747426259857,-400.0,0.00016712,2]
[361290051,1747426259867,-400.0,0.00016712,2]
[361290052,1747426259877,-601.19,0.00016712,2]
[361290053,1747426259885,-500.0,0.00016712,2]
[361290054,1747426259895,-6138.62,0.00016712,2]
[361290055,1747426259904,-574.02,0.00016712,2]
[361290056,1747426259913,-959.31,0.00016712,2]
[361290057,1747426259922,-550.83,0.00016712,2]
[361290058,1747426259931,-400.0,0.00016712,2]
[361290059,1747426259941,-400.0,0.00016712,2]
[361290060,1747426259950,-227.88125923,0.00016712,2]
[361290061,1747426259960,-3855.52,0.00016712,2]
[361290062,1747426259969,-400.0,0.00016712,2]
[361290063,1747426259978,-662.39,0.00016712,2]
[361290064,1747426259988,-400.0,0.00016712,2]
[361290065,1747426259997,-400.0,0.00016712,2]
[361290066,1747426260007,-181.61789515,0.00016712,2]
[361290067,1747426260016,-1083.34,0.00016712,2]
[361290068,1747426260025,-400.0,0.00016712,2]
[361290069,1747426260035,-756.49,0.00016712,2]
[361290070,1747426260045,-403.10499183,0.00016712,2]
[361290071,1747426260054,-3025.91,0.00016712,2]
[361290072,1747426260063,-400.0,0.00016712,2]
[361290073,1747426260073,-1010.99,0.00016712,2]
[361290074,1747426260082,-400.0,0.00016712,2]
[361290075,1747426260091,-938.69,0.00016712,2]
[361290076,1747426260101,-400.0,0.00016712,2]
[361290077,1747426260110,-400.0,0.00016712,2]
[361290078,1747426260120,-884.21,0.00016712,2]
[361290079,1747426260129,-542.53,0.00016712,2]
[361290080,1747426260139,-400.0,0.00016712,2]
[361290081,1747426260149,-589.57,0.00016712,2]
[361290082,1747426260159,-400.0,0.00016712,2]
[361290083,1747426260168,-500.0,0.00016712,2]
[361290084,1747426260177,-452.25100972,0.00016712,2]
[361290085,1747426260187,-856.62,0.00016712,2]
[361290086,1747426260196,-658.16,0.00016712,2]
[361290087,1747426260205,-400.0,0.00016712,2]
[361290088,1747426260214,-500.0,0.00016712,2]
[361290089,1747426260224,-415.98,0.00016712,2]
[361290090,1747426260233,-400.0,0.00016712,2]
[361290091,1747426260242,-400.0,0.00016712,2]
[361290092,1747426260251,-478.08075447,0.00016712,2]
[361290093,1747426260261,-1231.04,0.00016712,2]
[361290094,1747426260270,-486.79,0.00016712,2]
[361290095,1747426260279,-400.0,0.00016712,2]
[361290096,1747426260288,-614.53,0.00016712,2]
[361290097,1747426260297,-500.0,0.00016712,2]
[361290098,1747426260306,-550.96,0.00016712,2]
[361290099,1747426260316,-500.0,0.00016712,2]
[361290100,1747426260325,-460.01,0.00016712,2]
[361290101,1747426260335,-151.0,0.00016712,2]
[361290102,1747426260344,-400.0,0.00016712,2]
[361290103,1747426260354,-227.222317,0.00016712,2]
[361290104,1747426260363,-1840.95,0.00016712,2]
[361290105,1747426260372,-712.11,0.00016712,2]
[361290106,1747426260381,-508.94,0.00016712,2]
[361290107,1747426260391,-400.0,0.00016712,2]
[361290108,1747426260400,-1540.43,0.00016712,2]
[361290109,1747426260409,-1027.54,0.00016712,2]
[361290110,1747426260419,-561.06,0.00016712,2]
[361290111,1747426260428,-1894.58,0.00016712,2]
[361290112,1747426260438,-3119.43,0.00016712,2]
[361290113,1747426260447,-400.0,0.00016712,2]
[361290114,1747426260456,-400.0,0.00016712,2]
[361290115,1747426260465,-400.0,0.00016712,2]
[361290116,1747426260475,-1318.73,0.00016712,2]
[361290117,1747426260484,-400.0,0.00016712,2]
[361290118,1747426260494,-12626.7,0.00016712,2]
[361290119,1747426260503,-165.53550363,0.00016712,2]
[361290120,1747426260513,-400.0,0.00016712,2]
[361290121,1747426260522,-7263.49,0.00016712,2]
[361290122,1747426260532,-500.0,0.00016712,2]
[361290123,1747426260541,-400.0,0.00016712,2]
[361290124,1747426260550,-1849.45,0.00016712,2]
[361290125,1747426260560,-2318.32,0.00016712,2]
[361290126,1747426260570,-191.35751775,0.00016712,2]
[361290127,1747426260580,-500.0,0.00016712,2]
[361290128,1747426260589,-151.0,0.00016712,2]
[361290129,1747426260598,-151.0,0.00016712,2]
[361290130,1747426260608,-151.0,0.00016712,2]
[361290131,1747426260617,-151.0,0.00016712,2]
[361290132,1747426260626,-500.0,0.00016712,2]
[361290133,1747426260635,-500.0,0.00016712,2]
[361290134,1747426260644,-1304.84,0.00016712,2]
[361290135,1747426260653,-7188.53,0.00016712,2]
[361290136,1747426260662,-797.6,0.00016712,2]
[361290137,1747426260671,-500.0,0.00016712,2]
[361290138,1747426260680,-151.0,0.00016712,2]
[361290139,1747426260689,-755.75,0.00016712,2]
[361290140,1747426260698,-377.41975679,0.00016712,2]
[361290141,1747426260707,-151.0,0.00016712,2]
[361290142,1747426260717,-400.0,0.00016712,2]
[361290143,1747426260726,-400.0,0.00016712,2]
[361290144,1747426260735,-192.30819679,0.00016712,2]
[361290145,1747426260744,-500.0,0.00016712,2]
[361290146,1747426260753,-2042.96,0.00016712,2]
[361290147,1747426260764,-500.0,0.00016712,2]
[361290148,1747426260772,-450.19,0.00016712,2]
[361290149,1747426260782,-170.3025899,0.00016712,2]
[361290150,1747426260793,-3621.3,0.00016712,2]
[361290151,1747426260803,-400.0,0.00016712,2]
[361290152,1747426260812,-1563.09,0.00016712,2]
[361290153,1747426260820,-400.0,0.00016712,2]
[361290154,1747426260830,-150.0,0.00016712,2]
[361290155,1747426260840,-400.0,0.00016712,2]
[361290156,1747426260849,-400.0,0.00016712,2]
[361290157,1747426260858,-1196.28,0.00016712,2]
[361290158,1747426260867,-1576.06,0.00016712,2]
[361290159,1747426260877,-610.58,0.00016712,2]
[361290160,1747426260886,-1011.24,0.00016712,2]
[361290161,1747426260896,-1791.45,0.00016712,2]
[361290162,1747426260905,-400.0,0.00016712,2]
[361290163,1747426260914,-409.84216593,0.00016712,2]
[361290164,1747426260924,-3969.63,0.00016712,2]
[361290165,1747426260935,-1139.13,0.00016712,2]
[361290166,1747426260946,-400.0,0.00016712,2]
[361290167,1747426260956,-851.76,0.00016712,2]
[361290168,1747426260966,-400.0,0.00016712,2]
[361290169,1747426260975,-400.0,0.00016712,2]
[361290170,1747426260984,-3182.98,0.00016712,2]
[361290171,1747426260993,-400.0,0.00016712,2]
[361290172,1747426261002,-989.31,0.00016712,2]
[361290173,1747426261011,-911.27,0.00016712,2]
[361290174,1747426261020,-3303.23,0.00016712,2]
[361290175,1747426261029,-3317.75,0.00016712,2]
[361290176,1747426261037,-670.82,0.00016712,2]
[361290177,1747426261047,-400.0,0.00016712,2]
[361290178,1747426261057,-400.0,0.00016712,2]
[361290179,1747426261065,-400.0,0.00016712,2]
[361290180,1747426261074,-556.5,0.00016712,2]
[361290181,1747426261083,-2333.45,0.00016712,2]
[361290182,1747426261092,-2142.68,0.00016712,2]
[361290183,1747426261101,-400.0,0.00016712,2]
[361290184,1747426261110,-400.0,0.00016712,2]
[361290185,1747426261119,-151.0,0.00016712,2]
[361290186,1747426261128,-151.0,0.00016712,2]
[361290187,1747426261137,-400.0,0.00016712,2]
[361290188,1747426261146,-151.0,0.00016712,2]
[361290189,1747426261155,-151.0,0.00016712,2]
[361290190,1747426261165,-151.0,0.00016712,2]
[361290191,1747426261174,-794.117652,0.00016712,2]
[361290192,1747426261183,-2007.06,0.00016712,2]
[361290193,1747426261192,-794.117652,0.00016712,2]
[361290194,1747426261202,-794.117652,0.00016712,2]
[361290195,1747426261211,-400.0,0.00016712,2]
[361290196,1747426261220,-794.117652,0.00016712,2]
[361290197,1747426261229,-400.0,0.00016712,2]
[361290198,1747426261238,-821.45,0.00016712,2]
[361290199,1747426261248,-462.72,0.00016712,2]
[361290200,1747426261257,-400.0,0.00016712,2]
[361290201,1747426261266,-151.0,0.00016712,2]
[361290202,1747426261275,-151.0,0.00016712,2]
[361290203,1747426261284,-151.0,0.00016712,2]
[361290204,1747426261292,-794.117652,0.00016712,2]
[361290205,1747426261301,-1660.77,0.00016712,2]
[361290206,1747426261311,-151.0,0.00016712,2]
[361290207,1747426261320,-794.117652,0.00016712,2]
[361290208,1747426261329,-255.5682,0.00016712,2]
[361290209,1747426261338,-2863.57,0.00016712,2]
[361290210,1747426261348,-794.117652,0.00016712,2]
[361290211,1747426261358,-411.24,0.00016712,2]
[361290212,1747426261367,-971.77,0.00016712,2]
[361290213,1747426261376,-794.117652,0.00016712,2]
[361290214,1747426261386,-400.0,0.00016712,2]
[361290215,1747426261395,-1184.07,0.00016712,2]
[361290216,1747426261403,-400.0,0.00016712,2]
[361290217,1747426261412,-161.39291497,0.00016712,2]
[361290218,1747426261421,-400.0,0.00016712,2]
[361290219,1747426261431,-800.17,0.00016712,2]
[361290220,1747426261439,-400.0,0.00016712,2]
[361290221,1747426261448,-400.0,0.00016712,2]
[361290222,1747426261457,-400.0,0.00016712,2]
[361290223,1747426261466,-889.95,0.00016712,2]
[361290224,1747426261475,-442.59,0.00016712,2]
[361290225,1747426261484,-233.76924626,0.00016712,2]
[361290226,1747426261493,-400.0,0.00016712,2]
[361290227,1747426261502,-2898.19,0.00016712,2]
[361290228,1747426261512,-499.1809085,0.00016712,2]
[361290229,1747426261521,-1206.91,0.00016712,2]
[361290230,1747426261530,-400.0,0.00016712,2]
[361290231,1747426261540,-3478.05,0.00016712,2]
[361290232,1747426261549,-151.0,0.00016712,2]
[361290233,1747426261558,-1018.02,0.00016712,2]
[361290234,1747426261567,-500.0,0.00016712,2]
[361290235,1747426261576,-400.0,0.00016712,2]
[361290236,1747426261585,-500.0,0.00016712,2]
[361290237,1747426261594,-400.0,0.00016712,2]
[361290238,1747426261607,-899.06,0.00016712,2]
[361290239,1747426261616,-15828.3,0.00016712,2]
[361290240,1747426261626,-400.0,0.00016712,2]
[361290241,1747426261635,-792.21,0.00016712,2]
[361290242,1747426261644,-3102.61,0.00016712,2]
[361290243,1747426261653,-3117.44,0.00016712,2]
[361290244,1747426261663,-1572.59,0.00016712,2]
[361290245,1747426261672,-11945.33,0.00016712,2]
[361290246,1747426261682,-400.0,0.00016712,2]
[361290247,1747426261691,-151.0,0.00016712,2]
[361290248,1747426261700,-151.0,0.00016712,2]
[361290249,1747426261709,-2817.85,0.00016712,2]
[361290250,1747426261718,-482.81,0.00016712,2]
[361290251,1747426261727,-151.0,0.00016712,2]
[361290252,1747426261736,-151.0,0.00016712,2]
[361290253,1747426261746,-400.0,0.00016712,2]
[361290254,1747426261755,-441.83859113,0.00016712,2]
[361290255,1747426261764,-400.0,0.00016712,2]
[361290256,1747426261773,-647.84,0.00016712,2]
[361290257,1747426261782,-706.64,0.00016712,2]
[361290258,1747426261795,-400.0,0.00016712,2]
[361290259,1747426261805,-400.0,0.00016712,2]
[361290260,1747426261814,-1181.06,0.00016712,2]
[361290261,1747426261823,-151.0,0.00016712,2]
[361290262,1747426261833,-2554.49,0.00016712,2]
[361290263,1747426261842,-151.0,0.00016712,2]
[361290264,1747426261852,-7012.42,0.00016712,2]
[361290265,1747426261862,-151.0,0.00016712,2]
[361290266,1747426261872,-161.935123,0.00016712,2]
[361290267,1747426261881,-400.0,0.00016712,2]
[361290268,1747426261890,-1007.91,0.00016712,2]
[361290269,1747426261899,-2408.22,0.00016712,2]
[361290270,1747426261908,-1249.97,0.00016712,2]
[361290271,1747426261917,-1053.01,0.00016712,2]
[361290272,1747426261926,-400.0,0.00016712,2]
[361290273,1747426261935,-5447.95,0.00016712,2]
[361290274,1747426261944,-400.0,0.00016712,2]
[361290275,1747426261953,-400.0,0.00016712,2]
[361290276,1747426261963,-1955.8,0.00016712,2]
[361290277,1747426261972,-400.0,0.00016712,2]
[361290278,1747426261981,-1443.56,0.00016712,2]
[361290279,1747426261990,-400.0,0.00016712,2]
[361290280,1747426261998,-400.0,0.00016712,2]
[361290281,1747426262008,-467.46,0.00016712,2]
[361290282,1747426262017,-1053.67,0.00016712,2]
[361290283,1747426262026,-530.82,0.00016712,2]
[361290284,1747426262035,-8692.09,0.00016712,2]
[361290285,1747426262044,-400.0,0.00016712,2]
[361290286,1747426262052,-1366.11,0.00016712,2]
[361290287,1747426262062,-1286.34,0.00016712,2]
[361290288,1747426262071,-604.64,0.00016712,2]
[361290289,1747426262079,-1292.1,0.00016712,2]
[361290290,1747426262088,-759.5,0.00016712,2]
[361290291,1747426262097,-518.2383287,0.00016712,2]
[361290292,1747426262107,-516.93,0.00016712,2]
[361290293,1747426262116,-2894.19,0.00016712,2]
[361290294,1747426262125,-857.07,0.00016712,2]
[361290295,1747426262134,-400.0,0.00016712,2]
[361290296,1747426262144,-2279.03,0.00016712,2]
[361290297,1747426262154,-500.0,0.00016712,2]
[361290298,1747426262163,-450.0,0.00016712,2]
[361290299,1747426262172,-400.0,0.00016712,2]
[361290300,1747426262181,-485.68,0.00016712,2]
[361290301,1747426262190,-400.0,0.00016712,2]
[361290302,1747426262199,-400.0,0.00016712,2]
[361290303,1747426262208,-150.0,0.00016712,2]
[361290304,1747426262217,-400.0,0.00016712,2]
[361290305,1747426262226,-150.0,0.00016712,2]
[361290306,1747426262236,-949.05,0.00016712,2]
[361290307,1747426262245,-902.44,0.00016712,2]
[361290308,1747426262254,-10956.5,0.00016712,2]
[361290309,1747426262263,-853.75,0.00016712,2]
[361290310,1747426262273,-524.87,0.00016712,2]
[361290311,1747426262282,-7763.45,0.00016712,2]
[361290312,1747426262291,-5592.41,0.00016712,2]
[361290313,1747426262299,-157.2417089,0.00016712,2]
[361290314,1747426262309,-434.51,0.00016712,2]
[361290315,1747426262318,-218.33169436,0.00016712,2]
[361290316,1747426262328,-561.81,0.00016712,2]
[361290317,1747426262337,-2654.68,0.00016712,2]
[361290318,1747426262347,-644.93,0.00016712,2]
[361290319,1747426262357,-2941.2,0.00016712,2]
[361290320,1747426262366,-623.34,0.00016712,2]
[361290321,1747426262375,-721.09,0.00016712,2]
[361290322,1747426262384,-500.0,0.00016712,2]
[361290323,1747426262394,-693.92,0.00016712,2]
[361290324,1747426262403,-574.76,0.00016712,2]
[361290325,1747426262412,-430.8,0.00016712,2]
[361290326,1747426262421,-955.3,0.00016712,2]
[361290327,1747426262535,-400.0,0.00016712,2]
[361290328,1747426262552,-655.34,0.00016712,2]
[361290329,1747426262561,-400.0,0.00016712,2]
[361290330,1747426262571,-1389.48,0.00016712,2]
[361290331,1747426262580,-1358.52,0.00016712,2]
[361290332,1747426262589,-7419.37,0.00016712,2]
[361290333,1747426262599,-1999.48,0.00016712,2]
[361290334,1747426262609,-185.41369514,0.00016712,2]
[361290335,1747426262619,-860.29,0.00016712,2]
[361290336,1747426262627,-400.0,0.00016712,2]
[361290337,1747426262638,-400.0,0.00016712,2]
[361290338,1747426262647,-586.68,0.00016712,2]
[361290339,1747426262656,-400.0,0.00016712,2]
[361290340,1747426262666,-400.0,0.00016712,2]
[361290341,1747426262675,-400.0,0.00016712,2]
[361290342,1747426262684,-400.0,0.00016712,2]
[361290343,1747426262694,-2035.15,0.00016712,2]
[361290344,1747426262703,-1099.8,0.00016712,2]
[361290345,1747426262712,-805.47,0.00016712,2]
[361290346,1747426262722,-400.0,0.00016712,2]
[361290347,1747426262731,-22631.55,0.00016712,2]
[361290348,1747426262740,-400.0,0.00016712,2]
[361290349,1747426262749,-527.31,0.00016712,2]
[361290350,1747426262759,-1138.22,0.00016712,2]
[361290351,1747426262769,-993.35,0.00016712,2]
[361290352,1747426262779,-602.14,0.00016712,2]
[361290353,1747426262794,-400.0,0.00016712,2]
[361290354,1747426262812,-181.96617735,0.00016712,2]
[361290355,1747426262828,-759.68,0.00016712,2]
[361290356,1747426262837,-303.98180571,0.00016712,2]
[361290357,1747426262847,-12280.2,0.00016712,2]
[361290358,1747426262856,-151.0,0.00016712,2]
[361290359,1747426262865,-400.0,0.00016712,2]
[361290360,1747426262875,-447.24,0.00016712,2]
[361290361,1747426262884,-151.0,0.00016712,2]
[361290362,1747426262894,-1647.99,0.00016712,2]
[361290363,1747426262903,-151.0,0.00016712,2]
[361290364,1747426262913,-151.0,0.00016712,2]
[361290365,1747426262922,-151.0,0.00016712,2]
[361290366,1747426262931,-400.0,0.00016712,2]
[361290367,1747426262940,-1605.37,0.00016712,2]
[361290368,1747426262949,-709.35,0.00016712,2]
[361290369,1747426262958,-2103.15,0.00016712,2]
[361290370,1747426262967,-400.0,0.00016712,2]
[361290371,1747426262977,-626.63,0.00016712,2]
[361290372,1747426262986,-19583.11,0.00016712,2]
[361290373,1747426262995,-400.0,0.00016712,2]
[361290374,1747426263004,-401.48,0.00016712,2]
[361290375,1747426263014,-866.68,0.00016712,2]
[361290376,1747426263024,-433.71411063,0.00016712,2]
[361290377,1747426263033,-3893.07,0.00016712,2]
[361290378,1747426263042,-1600.63,0.00016712,2]
[361290379,1747426263051,-1183.05,0.00016712,2]
[361290380,1747426263061,-400.0,0.00016712,2]
[361290381,1747426263071,-20330.51,0.00016712,2]
[361290382,1747426263080,-500.0,0.00016712,2]
[361290383,1747426263090,-2080.51,0.00016712,2]
[361290384,1747426263100,-157032.07,0.00016712,2]
[361290385,1747426263109,-1457.55,0.00016712,2]
[361290386,1747426263119,-400.0,0.00016712,2]
[361290387,1747426263129,-400.0,0.00016712,2]
[361290388,1747426263139,-576.9,0.00016712,2]
[361290389,1747426263148,-1174.68,0.00016712,2]
[361290390,1747426263158,-403.39,0.00016712,2]
[361290391,1747426263168,-1393.44,0.00016712,2]
[361290392,1747426263177,-3972.41,0.00016712,2]
[361290393,1747426263187,-525.68,0.00016712,2]
[361290394,1747426263196,-1521.05,0.00016712,2]
[361290395,1747426263205,-3041.86,0.00016712,2]
[361290396,1747426263215,-1676.08,0.00016712,2]
[361290397,1747426263224,-5556.56,0.00016712,2]
[361290398,1747426263233,-585.65,0.00016712,2]
[361290399,1747426263243,-1035.66,0.00016712,2]
[361290400,1747426263253,-151.0,0.00016712,2]
[361290401,1747426263262,-151.0,0.00016712,2]
[361290402,1747426263272,-158.87455199,0.00016712,2]
[361290403,1747426263281,-254.406072,0.00016712,2]
[361290404,1747426263291,-400.0,0.00016712,2]
[361290405,1747426263300,-400.0,0.00016712,2]
[361290406,1747426263310,-400.0,0.00016712,2]
[361290407,1747426263319,-185.56974922,0.00016712,2]
[361290408,1747426263328,-1873.5,0.00016712,2]
[361290409,1747426263338,-11300.04,0.00016712,2]
[361290410,1747426263347,-465.1250916,0.00016712,2]
[361290411,1747426263356,-747.94,0.00016712,2]
[361290412,1747426263366,-452.32,0.00016712,2]
[361290413,1747426263376,-151.0,0.00016712,2]
[361290414,1747426263385,-450.0,0.00016712,2]
[361290415,1747426263394,-151.0,0.00016712,2]
[361290416,1747426263404,-400.0,0.00016712,2]
[361290417,1747426263413,-400.0,0.00016712,2]